bitfinex/quotes_ETHUSD_20240604
["timestamp","ask_amount","ask_price","bid_price","bid_amount"]
[1717522028768,12.43082452,3818.9,3818.8,0.15743697]
[1717522028769,15.04937452,3818.9,3818.8,0.15743697]
[1717522028968,19.64073362,3818.9,3818.8,0.15743697]
[1717522029191,19.64073362,3818.9,3818.8,0.1281019]
[1717522029446,22.82512069,3818.9,3818.8,0.1281019]
[1717522029814,22.82512069,3818.9,3817.5,2.61951]
[1717522029815,2.3132,3818.2,3817.6,2.61944]
[1717522029989,2.3132,3818.2,3817.9,2.61921]
[1717522029990,8.05503684,3818.1,3817.9,2.61921]
[1717522030285,8.05503684,3818.1,3817.8,2.61928]
[1717522030286,0.782,3818.0,3817.8,2.61928]
[1717522030487,8.60571684,3817.9,3817.8,2.61928]
[1717522031047,8.60571684,3817.9,3817.5,2.61949]
[1717522031048,2.4718,3817.8,3817.7,2.61937]
[1717522031253,11.07751684,3817.8,3817.7,2.61937]
[1717522031445,12.20840052,3817.8,3817.7,2.61937]
[1717522031942,11.42640052,3817.8,3817.7,2.61937]
[1717522032355,11.42640052,3817.8,3817.5,2.61951]
[1717522032791,11.42640052,3817.8,3817.1,2.61975]
[1717522032792,1.878,3817.7,3817.3,2.61958]
[1717522032956,9.41608189,3817.6,3817.3,2.61958]
[1717522033284,9.41608189,3817.6,3817.4,2.61957]
[1717522033494,2.3264,3817.5,3816.7,2.62003]
[1717522033690,2.3264,3817.5,3817.0,2.61984]
[1717522033691,1.878,3817.2,3817.0,2.61984]
[1717522034000,8.79388852,3817.1,3817.0,2.61984]
[1717522034284,7.82371684,3817.1,3816.8,2.61993]
[1717522034489,2.3113,3817.0,3816.8,2.61993]
[1717522034690,7.82371684,3816.9,3816.6,2.62007]
[1717522034900,1.878,3816.8,3816.6,2.62007]
[1717522035186,1.878,3816.8,3815.7,2.6207]
[1717522035187,9.02501852,3816.7,3816.4,2.62025]
[1717522035356,2.3113,3816.6,3816.4,2.62025]
[1717522035556,7.82371684,3816.5,3816.2,2.62037]
[1717522035853,7.82371684,3816.5,3816.3,0.02585231]
[1717522036082,7.82371684,3816.5,3815.8,2.62063]
[1717522036253,1.13363185,3816.4,3815.8,2.62063]
[1717522036569,7.82371684,3816.3,3815.8,2.62063]
[1717522036956,7.82371684,3816.3,3816.1,2.62042]
[1717522037475,7.82371684,3816.3,3816.2,0.02610601]
[1717522038563,7.82371684,3816.3,3815.9,2.62058]
[1717522038775,0.89573487,3816.2,3815.9,2.62058]
[1717522039084,7.82371684,3816.1,3816.0,2.64528568]
[1717522039896,7.82371684,3816.1,3816.0,0.02478568]
[1717522040108,7.82371684,3816.1,3815.8,2.62065]
[1717522040303,7.82371684,3816.1,3816.0,0.02483416]
[1717522040601,7.82371684,3816.1,3815.8,2.62065]
[1717522040815,8.71945171,3816.1,3816.0,0.02483416]
[1717522041017,8.71945171,3816.1,3815.9,2.64542475]
[1717522041328,8.71945171,3816.1,3816.0,0.02483416]
[1717522041614,11.08585171,3816.1,3816.0,0.02483416]
[1717522041967,11.08585171,3816.1,3815.5,2.62085]
[1717522042167,1.10858517,3816.0,3815.5,2.62085]
[1717522042361,7.82371684,3815.9,3815.6,0.02495652]
[1717522042685,7.82371684,3815.9,3815.6,2.64573652]
[1717522043006,7.82371684,3815.9,3815.7,2.62071]
[1717522043306,7.82371684,3815.9,3815.8,0.02489534]
[1717522043469,7.82371684,3815.9,3815.7,2.62071]
[1717522043668,7.82371684,3815.9,3815.8,0.02489534]
[1717522043863,7.82371684,3815.9,3815.7,2.62071]
[1717522044104,7.82371684,3815.9,3815.8,0.02489664]
[1717522044304,7.82371684,3815.9,3815.7,2.62071]
[1717522044507,7.82371684,3815.9,3815.8,0.02493867]
[1717522044811,8.69566201,3815.9,3815.7,2.62071]
[1717522045019,8.69566201,3815.9,3815.8,0.02422269]
[1717522045416,8.69566201,3815.9,3815.5,2.62085]
[1717522045579,10.94816201,3815.9,3815.8,0.02422269]
[1717522045779,10.94816201,3815.9,3815.6,2.62079]
[1717522046039,10.94816201,3815.9,3815.8,0.02422269]
[1717522046328,10.94816201,3815.9,3815.7,0.02425328]
[1717522047278,10.94816201,3815.9,3815.5,2.62087]
[1717522047500,10.94816201,3815.9,3815.8,0.02422269]
[1717522047701,10.94816201,3815.9,3815.5,2.62087]
[1717522047939,1.3568662,3815.8,3815.5,2.62087]
[1717522048250,7.82371684,3815.7,3815.6,2.62079]
[1717522048617,7.82371684,3815.7,3814.9,2.7493619]
[1717522048801,7.82371684,3815.7,3815.2,2.62103]
[1717522050650,7.82371684,3815.7,3815.3,2.62101]
[1717522050942,1.49257382,3815.6,3815.3,2.62101]
[1717522051176,7.82371684,3815.5,3815.3,2.62101]
[1717522053415,7.82371684,3815.5,3815.4,0.03140113]
[1717522055163,7.82371684,3815.5,3815.4,2.65235113]
[1717522056738,7.82371684,3815.5,3815.4,5.27330113]
[1717522060174,7.82371684,3815.5,3815.4,2.65235113]
[1717522060475,8.60608852,3815.5,3815.4,0.03140113]
[1717522060779,8.60608852,3815.5,3815.2,2.62107]
[1717522061139,8.60608852,3815.5,3815.3,0.02701184]
[1717522061339,8.60608852,3815.5,3815.2,2.62107]
[1717522061661,8.60608852,3815.5,3815.3,0.02706777]
[1717522061861,8.60608852,3815.5,3815.4,2.62095]
[1717522062173,7.82371684,3815.5,3815.4,2.62095]
[1717522062738,7.82371684,3815.5,3815.4,2.65023517]
[1717522073694,7.82371684,3815.5,3815.4,2.62095]
[1717522074090,7.82371684,3815.5,3815.1,2.62111]
[1717522074299,10.14411684,3815.5,3814.9,0.1281019]
[1717522074481,0.783,3815.0,3814.9,0.1281019]
[1717522074684,8.60671684,3815.0,3814.9,0.1281019]
[1717522075816,7.82371684,3815.0,3814.9,0.1281019]
[1717522076024,8.60671684,3815.0,3814.9,0.1281019]
[1717522076226,7.82371684,3815.0,3814.9,0.1281019]
[1717522076371,9.62112852,3815.0,3814.9,0.1281019]
[1717522076564,8.83812852,3815.0,3814.9,0.1281019]
[1717522076810,9.62112852,3815.0,3814.9,0.1281019]
[1717522079522,11.98462852,3815.0,3814.9,0.1281019]
[1717522080483,16.70943762,3815.0,3814.9,0.1281019]
[1717522081321,13.95743762,3815.0,3814.9,0.1281019]
[1717522082015,15.05643762,3815.0,3814.9,0.1281019]
[1717522082191,17.80843762,3815.0,3814.9,0.1281019]
[1717522082983,15.05643762,3815.0,3814.9,0.1281019]
[1717522085419,12.69293762,3815.0,3814.9,0.1281019]
[1717522087492,9.79652594,3815.0,3814.9,0.1281019]
[1717522088085,7.82371684,3815.0,3814.9,0.1281019]
[1717522088422,7.82371684,3815.0,3814.9,0.15302382]
[1717522089609,12.87154684,3815.0,3814.9,0.1281019]
[1717522089813,14.34690152,3815.0,3814.9,0.15186712]
[1717522090136,14.34690152,3815.0,3814.9,0.1281019]
[1717522091205,16.96813152,3815.0,3814.9,0.1281019]
[1717522091400,5.03148,3814.2,3813.4,2.62232]
[1717522091631,8.32686484,3814.1,3813.4,2.62232]
[1717522091831,8.32686484,3814.1,3813.5,0.02419384]
[1717522092033,7.82371684,3814.1,3813.4,2.62232]
[1717522092557,2.62193,3814.0,3813.5,0.02419384]
[1717522092716,10.17981684,3813.9,3813.1,4.95631]
[1717522093023,10.17981684,3813.9,3813.6,0.02416321]
[1717522093235,10.17981684,3813.9,3813.1,4.95631]
[1717522093383,1.28017468,3813.8,3813.1,4.95631]
[1717522093579,7.82371684,3813.7,3813.2,0.02428572]
[1717522094003,7.82371684,3813.7,3813.1,4.95631]
[1717522094411,7.82371684,3813.7,3813.2,0.02428572]
[1717522094818,7.82371684,3813.7,3813.1,4.95631]
[1717522095024,9.23190899,3813.7,3813.1,4.95631]
[1717522095238,9.23190899,3813.7,3813.2,0.02428572]
[1717522095603,9.23190899,3813.7,3813.1,4.95631]
[1717522095817,9.23190899,3813.7,3813.1,2.62251]
[1717522096129,9.23190899,3813.7,3813.2,0.02428572]
[1717522096332,1.1588009,3813.6,3812.7,2.62276]
[1717522096661,1.1588009,3813.6,3813.3,0.02425509]
[1717522096662,7.82371684,3813.5,3813.3,0.02425509]
[1717522096800,7.82371684,3813.5,3812.7,2.62276]
[1717522097003,7.82371684,3813.5,3812.8,0.02440826]
[1717522097218,0.89825177,3813.4,3812.8,0.02440826]
[1717522097421,2.62253,3813.2,3812.8,0.02440826]
[1717522097701,7.82371684,3813.1,3812.4,2.62299]
[1717522097929,7.82371684,3813.1,3812.9,0.02483023]
[1717522098140,7.82371684,3813.1,3812.4,2.62299]
[1717522098307,1.28101468,3813.0,3812.4,2.62299]
[1717522098512,7.82371684,3812.9,3812.4,2.62299]
[1717522100623,7.82371684,3812.9,3812.4,4.99619]
[1717522101143,7.82371684,3812.9,3812.7,2.62279]
[1717522108059,7.82371684,3812.9,3812.4,2.623]
[1717522111247,7.82371684,3812.9,3812.1,3.47521608]
[1717522111467,0.78237168,3812.8,3812.1,3.47521608]
[1717522111773,7.82371684,3812.7,3812.3,2.62305]
[1717522112579,7.82371684,3812.7,3812.6,2.62288]
[1717522112936,7.82371684,3812.7,3812.6,2.64791497]
[1717522113954,7.82371684,3812.7,3812.6,0.02503497]
[1717522114275,7.82371684,3812.7,3812.3,2.62304]
[1717522114276,8.60608852,3812.7,3812.3,2.62304]
[1717522114451,8.60608852,3812.7,3812.6,0.02491566]
[1717522114651,8.60608852,3812.7,3812.3,2.62304]
[1717522115054,8.60608852,3812.7,3812.5,2.62295]
[1717522115270,7.82371684,3812.7,3812.5,2.62295]
[1717522115439,7.82371684,3812.7,3812.6,0.02493394]
[1717522120954,10.11281684,3812.7,3812.6,0.02493394]
[1717522121169,10.11281684,3812.7,3812.1,3.47519608]
[1717522121170,12.08562594,3812.7,3812.1,0.85203608]
[1717522121372,12.08562594,3812.7,3812.6,0.02399355]
[1717522121559,12.08562594,3812.7,3812.1,0.85203608]
[1717522121560,13.74466053,3812.7,3812.1,0.85203608]
[1717522122207,13.74466053,3812.7,3812.2,2.6231]
[1717522122369,9.79652594,3812.7,3812.2,2.6231]
[1717522122619,9.79652594,3812.7,3812.4,2.62298]
[1717522122620,7.82371684,3812.7,3812.4,2.62298]
[1717522122779,7.82371684,3812.7,3812.4,4.91948]
[1717522123108,7.82371684,3812.7,3812.6,2.62288]
[1717522123571,7.82371684,3812.7,3812.6,2.64681209]
[1717522125004,7.82371684,3812.7,3812.6,5.26969209]
[1717522132316,7.82371684,3812.7,3812.6,2.64681209]
[1717522134032,0.56121931,3812.7,3812.6,10.14327209]
[1717522134172,0.56121931,3812.7,3812.6,11.07039209]
[1717522134376,2.2812,3814.1,3813.4,2.62228]
[1717522134615,8.29170091,3814.0,3813.6,2.62217]
[1717522134989,8.29170091,3814.0,3813.8,2.62205]
[1717522135626,8.29170091,3814.0,3813.9,0.0290656]
[1717522135991,8.29170091,3814.0,3813.8,2.62205]
[1717522136182,8.29170091,3814.0,3813.9,0.0290656]
[1717522136419,8.29170091,3814.0,3813.8,2.62205]
[1717522136920,8.29170091,3814.0,3813.9,0.0290656]
[1717522137089,8.29170091,3814.0,3813.8,2.62205]
[1717522137268,8.29170091,3814.0,3813.5,2.62223]
[1717522137467,8.29170091,3814.0,3813.9,0.0290656]
[1717522137672,8.29170091,3814.0,3813.7,2.62207]
[1717522138217,8.29170091,3814.0,3813.8,0.02910388]
[1717522141220,8.29170091,3814.0,3813.4,2.62228]
[1717522141586,2.4686,3813.8,3812.4,0.54864687]
[1717522141816,4.4414091,3813.8,3813.5,0.03177796]
[1717522142117,4.4414091,3813.8,3812.2,2.2569]
[1717522142426,4.4414091,3813.8,3813.6,0.0317362]
[1717522142585,4.4414091,3813.8,3812.2,5.2569]
[1717522142795,12.03287801,3813.7,3812.8,2.6227]
[1717522143973,12.03287801,3813.7,3813.0,2.62258]
[1717522144486,7.8663,3813.7,3812.5,2.3801]
[1717522144686,7.8663,3813.7,3813.4,2.6223]
[1717522148520,7.8663,3813.7,3813.4,5.2446]
[1717522149245,7.8663,3813.7,3813.4,7.86692]
[1717522149406,7.8663,3813.7,3813.6,5.24438]
[1717522149607,7.8663,3813.7,3813.6,5.79438]
[1717522149913,7.8663,3813.7,3813.6,2.62219]
[1717522156377,7.8663,3813.7,3813.6,3.17219]
[1717522156677,7.8663,3813.7,3813.6,5.79438]
[1717522157177,7.8663,3813.7,3813.6,2.62219]
[1717522157530,7.8663,3813.7,3813.6,5.2935893]
[1717522157969,7.8663,3813.7,3813.6,2.6713993]
[1717522167747,10.2408,3813.7,3813.6,0.0492093]
[1717522167943,10.2408,3813.7,3813.2,2.62241]
[1717522168348,10.2408,3813.7,3812.9,2.62263]
[1717522168549,10.2408,3813.7,3813.3,0.0316675]
[1717522168863,1.286288,3813.6,3812.9,2.62263]
[1717522169264,1.286288,3813.6,3813.0,0.03174128]
[1717522171462,1.286288,3813.6,3813.1,2.62252]
[1717522171858,1.286288,3813.6,3813.2,0.03489496]
[1717522172377,1.286288,3813.6,3813.1,2.62252]
[1717522172573,1.4149168,3813.5,3813.3,0.03165204]
[1717522172874,1.4149168,3813.5,3813.1,2.62252]
[1717522173605,1.4149168,3813.5,3812.8,2.62269]
[1717522173774,1.4149168,3813.5,3813.2,0.03166492]
[1717522173979,1.4149168,3813.5,3812.8,2.62269]
[1717522174177,1.4149168,3813.5,3813.3,0.03162316]
[1717522174178,1.16557168,3813.4,3813.3,0.03162316]
[1717522174416,1.16557168,3813.4,3812.8,2.62269]
[1717522175108,1.16557168,3813.4,3812.9,0.03173928]
[1717522175880,1.16557168,3813.4,3813.0,2.6226]
[1717522176217,1.16557168,3813.4,3813.1,0.02543578]
[1717522176379,1.16557168,3813.4,3813.0,2.6226]
[1717522176580,1.16557168,3813.4,3813.2,0.02540296]
[1717522176784,1.16557168,3813.4,3813.0,2.6226]
[1717522176785,0.52026985,3813.3,3813.0,2.6226]
[1717522178070,1.16557168,3813.4,3813.0,2.6226]
[1717522179946,1.16557168,3813.4,3812.7,2.62277]
[1717522181628,2.4931,3813.2,3812.7,2.62277]
[1717522181830,10.48889,3813.1,3812.4,2.62297]
[1717522182029,2.3445,3812.9,3812.4,2.62297]
[1717522183097,2.3445,3812.9,3812.1,3.47522608]
[1717522183098,4.96719,3812.9,3812.1,3.47522608]
[1717522183292,7.8663,3812.8,3812.1,3.47522608]
[1717522184234,2.62283,3812.7,3812.1,3.47522608]
[1717522184406,7.8663,3812.6,3812.1,3.47522608]
[1717522184609,1.048913,3812.5,3812.1,3.47522608]
[1717522185340,2.3869,3812.4,3812.1,0.85203608]
[1717522185504,7.8663,3812.3,3812.1,0.85203608]
[1717522185800,7.8663,3812.3,3812.2,0.02555715]
[1717522186023,8.9965113,3812.3,3812.2,0.02555715]
[1717522186232,8.9965113,3812.3,3812.1,0.85203608]
[1717522187335,7.8663,3812.3,3812.1,0.85203608]
[1717522187545,7.8663,3812.3,3812.1,3.47520608]
[1717522187903,7.8663,3812.3,3812.2,0.02571364]
[1717522202929,7.8663,3812.3,3812.2,5.27201364]
[1717522203124,7.8663,3812.3,3812.2,15.69176364]
[1717522203325,1.9728091,3812.9,3812.8,2.62274]
[1717522203939,4.2322091,3812.9,3812.5,2.62293]
[1717522204525,4.2322091,3812.9,3812.2,2.64883364]
[1717522205225,4.2322091,3812.9,3812.4,2.62298]
[1717522210275,6.8549491,3812.9,3812.2,0.02571364]
[1717522210486,1.25223248,3812.8,3812.2,0.02571364]
[1717522210652,1.252233,3812.8,3812.2,0.02571364]
[1717522211039,0.68547791,3812.8,3812.2,0.02571364]
[1717522211274,2.62281,3812.7,3812.2,0.02571364]
[1717522211586,2.62296,3812.5,3812.2,0.02571364]
[1717522213051,2.62276,3812.8,3812.2,0.02571364]
[1717522213447,4.2322091,3812.9,3812.2,2.64882364]
[1717522213778,0.68547691,3812.8,3812.2,2.64882364]
[1717522215278,1.9728091,3812.9,3812.2,0.02571364]
[1717522215783,1.9728091,3812.9,3812.6,2.62284]
[1717522216693,1.9728091,3813.4,3813.3,2.6224]
[1717522216995,1.9728091,3813.8,3813.3,2.6224]
[1717522217790,1.9728091,3813.8,3813.5,2.62221]
[1717522219476,1.9728091,3813.8,3813.6,0.03196112]
[1717522220457,1.9728091,3813.8,3813.7,2.62212]
[1717522222895,2.06315421,3814.1,3813.7,2.62212]
[1717522224602,2.06315421,3814.1,3813.9,2.62194]
[1717522225413,2.06315421,3814.1,3813.9,2.65627484]
[1717522226694,2.06315421,3814.1,3813.9,2.62194]
[1717522226891,2.06315421,3814.1,3814.0,0.03463401]
[1717522227076,1.9728091,3814.3,3814.1,2.62185]
[1717522227277,1.9728091,3814.9,3814.4,2.62162]
[1717522228513,3.8548091,3814.9,3814.0,2.62185]
[1717522229993,1.9728091,3814.9,3814.3,2.62166]
[1717522230312,0.45940991,3814.8,3814.3,2.62166]
[1717522231024,1.9728091,3814.9,3814.5,2.62151]
[1717522231184,1.9728091,3814.9,3814.7,2.62137]
[1717522231609,14.6643,3815.3,3814.7,2.62137]
[1717522231826,2.3043,3815.3,3814.7,2.62137]
[1717522232548,2.62128,3815.0,3813.6,3.0]
[1717522232697,4.5940891,3815.0,3813.3,3.0]
[1717522232882,4.5940891,3815.0,3813.4,0.04298222]
[1717522233238,4.5940891,3815.0,3814.2,2.62172]
[1717522233239,1.9728091,3815.0,3814.2,2.62172]
[1717522233516,0.2662617,3814.9,3814.4,2.62157]
[1717522233724,1.9728091,3815.0,3814.4,2.62157]
[1717522235711,1.9728091,3815.0,3813.9,2.3499]
[1717522235712,1.9728091,3815.0,3814.6,2.62145]
[1717522237487,0.68980791,3815.2,3814.6,2.62145]
[1717522239902,0.68980791,3815.2,3814.3,2.62167]
[1717522240103,2.62118,3815.1,3814.3,2.62167]
[1717522240301,3.18270879,3815.1,3814.3,2.62167]
[1717522244462,2.62131,3814.9,3814.3,2.62167]
[1717522246288,0.56152879,3815.1,3814.3,2.62167]
[1717522249496,0.56152879,3815.1,3814.5,2.62154]
[1717522251838,2.62123,3815.0,3814.5,2.62154]
[1717522252140,0.38725667,3814.9,3814.5,2.62154]
[1717522253896,0.784,3814.7,3814.5,2.62154]
[1717522257160,0.68980791,3815.2,3814.7,2.62138]
[1717522257317,0.784,3814.9,3814.7,2.62138]
[1717522260869,0.784,3814.9,3813.9,4.97183]
[1717522260870,3.0956,3814.9,3814.1,2.62179]
[1717522261098,0.784,3814.7,3814.1,2.62179]
[1717522262058,0.784,3814.7,3814.3,2.62169]
[1717522263160,0.784,3814.5,3814.3,2.62169]
[1717522263657,0.784,3814.7,3814.3,2.62169]
[1717522264169,0.784,3814.7,3814.0,2.62188]
[1717522264715,0.784,3814.7,3814.2,2.62176]
[1717522264917,1.4128684,3814.7,3814.2,2.62176]
[1717522266367,0.784,3814.3,3813.9,2.62193]
[1717522266758,0.784,3814.1,3813.6,2.62215]
[1717522267620,0.784,3813.9,3813.0,2.4572]
[1717522268126,0.784,3813.9,3813.1,0.05725652]
[1717522268472,0.784,3813.9,3813.1,3.05725652]
[1717522268618,0.784,3813.9,3813.4,2.62229]
[1717522269658,0.784,3813.9,3813.5,0.04933405]
[1717522269852,0.784,3813.9,3813.4,2.62229]
[1717522270019,0.784,3813.9,3813.6,0.05743452]
[1717522270379,0.784,3813.9,3813.4,2.62229]
[1717522271196,0.784,3813.9,3813.5,0.04313331]
[1717522271323,0.784,3813.9,3813.4,2.62229]
[1717522271524,0.784,3813.9,3813.5,0.04297806]
[1717522271719,0.784,3813.9,3813.4,2.61526806]
[1717522272146,1.360911,3813.9,3813.4,2.61526806]
[1717522272675,0.784,3813.7,3813.4,2.61526806]
[1717522276746,1.9728091,3814.4,3813.7,2.6221]
[1717522276945,0.784,3814.0,3813.7,2.6221]
[1717522277556,1.9728091,3814.4,3813.7,2.6221]
[1717522277729,0.784,3814.3,3813.7,2.6221]
[1717522277926,2.66004501,3814.4,3813.7,2.6221]
[1717522278162,0.784,3814.1,3813.7,2.6221]
[1717522279175,0.784,3814.1,3813.9,2.62196]
[1717522279973,1.9728091,3814.4,3814.1,2.62181]
[1717522280174,0.784,3814.3,3814.1,2.62181]
[1717522281417,0.27568091,3814.2,3814.1,2.62181]
[1717522281770,0.784,3814.3,3814.1,2.62181]
[1717522284011,1.9728091,3814.4,3814.1,2.62181]
[1717522284374,6.8698891,3815.0,3814.3,2.62168]
[1717522284571,0.784,3814.8,3814.3,2.62168]
[1717522285225,0.784,3814.6,3814.3,2.62168]
[1717522286346,2.2758,3815.0,3814.3,2.62168]
[1717522286644,0.784,3814.8,3814.3,2.62168]
[1717522286966,0.784,3814.8,3814.2,2.4369]
[1717522286967,5.08697,3815.3,3814.5,2.6215]
[1717522287520,0.784,3815.0,3814.5,2.6215]
[1717522287742,0.784,3814.8,3814.5,2.6215]
[1717522288342,5.08697,3815.3,3814.5,2.6215]
[1717522288546,0.784,3814.6,3814.5,2.6215]
[1717522289331,0.784,3814.6,3814.1,2.62178]
[1717522289503,0.784,3814.2,3814.1,2.62178]
[1717522291531,0.784,3814.4,3814.1,2.62178]
[1717522292461,0.784,3814.4,3813.7,2.4806]
[1717522292462,0.784,3814.2,3813.7,2.62205]
[1717522292670,0.784,3814.1,3813.7,2.62205]
[1717522293807,0.784,3814.3,3813.7,2.62205]
[1717522295436,7.8658,3814.2,3813.7,2.62205]
[1717522296415,7.8658,3814.2,3813.4,2.6223]
[1717522297142,10.48762,3814.2,3813.4,2.6223]
[1717522297339,1.127162,3814.1,3813.4,2.6223]
[1717522297533,7.8658,3814.0,3813.4,2.6223]
[1717522301857,10.48775,3814.0,3813.4,2.6223]
[1717522302988,10.48775,3814.0,3813.1,5.03409]
[1717522304132,10.48775,3814.0,3813.3,2.62237]
[1717522304381,11.9707112,3814.0,3813.3,2.62237]
[1717522311025,11.9707112,3814.0,3813.1,2.4116]
[1717522311426,11.9707112,3814.0,3813.2,0.784]
[1717522311602,11.9707112,3814.0,3813.3,2.62237]
[1717522312431,12.7547112,3814.0,3813.3,2.62237]
[1717522312626,1.63125732,3813.9,3813.3,2.62237]
[1717522317346,11.27175,3814.0,3813.3,2.62237]
[1717522317531,10.48775,3814.0,3813.3,2.62237]
[1717522317898,7.8658,3814.0,3813.5,2.62225]
[1717522318949,7.8658,3814.0,3813.7,2.62209]
[1717522320240,7.8658,3814.0,3813.4,4.8968]
[1717522320442,3.19118,3813.9,3813.4,2.6223]
[1717522320944,7.8658,3813.8,3813.4,2.6223]
[1717522322746,7.8658,3813.8,3813.1,2.62251]
[1717522324470,7.8658,3813.8,3813.0,2.2745]
[1717522324760,7.8658,3813.8,3813.3,2.62233]
[1717522324940,9.3121,3813.8,3813.3,2.62233]
[1717522329067,9.3121,3813.8,3813.0,2.2745]
[1717522329068,9.3121,3813.8,3813.5,2.62224]
[1717522330493,7.8658,3813.8,3813.5,2.62224]
[1717522336570,7.8658,3813.8,3813.2,2.62241]
[1717522337304,0.784,3813.7,3813.2,2.62241]
[1717522337609,7.8658,3813.6,3813.2,2.62241]
[1717522337761,0.78658,3813.5,3813.2,2.62241]
[1717522337963,7.8658,3813.6,3813.2,2.62241]
[1717522338388,0.784,3813.3,3812.9,2.62262]
[1717522338621,7.8658,3813.2,3812.9,2.62262]
[1717522339807,0.784,3813.0,3812.6,2.62284]
[1717522340097,7.8658,3812.9,3812.6,2.62284]
[1717522340685,8.96486,3812.9,3812.6,2.62284]
[1717522341705,7.8658,3812.9,3812.6,2.62284]
[1717522346415,2.3995,3812.8,3812.1,0.85203608]
[1717522346586,7.8658,3812.7,3812.1,0.85203608]
[1717522347721,0.784,3812.2,3812.1,0.85203608]
[1717522347876,8.990506,3812.2,3812.1,0.85203608]
[1717522348801,11.260106,3812.2,3812.1,0.85203608]
[1717522349576,8.206506,3812.2,3812.1,0.85203608]
[1717522352227,7.8658,3812.2,3812.1,0.85203608]
[1717522381892,8.6498,3812.2,3812.1,0.85203608]
[1717522382088,11.0338,3812.2,3812.1,0.85203608]
[1717522384240,10.2498,3812.2,3812.1,0.85203608]
[1717522387245,12.399483,3812.2,3812.1,0.85203608]
[1717522387801,11.615483,3812.2,3812.1,0.85203608]
[1717522388734,9.231483,3812.2,3812.1,0.85203608]
[1717522389111,7.8658,3812.2,3812.1,0.85203608]
[1717522390351,7.8658,3812.2,3812.1,1.63603608]
[1717522391703,7.8658,3812.2,3812.1,4.07563608]
[1717522392051,7.8658,3812.2,3812.1,3.29163608]
[1717522393508,7.8658,3812.2,3812.1,6.29163608]
[1717522397974,7.8658,3812.2,3812.1,6.84163608]
[1717522399715,1.9728091,3812.9,3812.2,2.4396]
[1717522399915,1.9728091,3812.9,3812.8,2.62274]
[1717522400132,1.9728091,3812.9,3812.8,5.06234]
[1717522401519,1.9728091,3813.6,3813.2,2.62241]
[1717522401713,2.62193,3814.0,3813.2,2.62241]
[1717522401908,1.9728091,3814.1,3812.8,2.4396]
[1717522402141,1.9728091,3814.1,3813.6,2.62215]
[1717522403236,1.9728091,3814.1,3813.3,2.62237]
[1717522403438,1.9728091,3814.1,3812.6,3.0]
[1717522403439,2.3725,3813.9,3812.7,2.62278]
[1717522403825,2.3725,3813.5,3812.6,3.0]
[1717522404028,2.3725,3813.5,3812.4,2.62299]
[1717522404029,2.3725,3813.5,3812.5,3.0]
[1717522404333,0.23725,3813.4,3812.4,2.62299]
[1717522405146,2.62265,3813.0,3812.1,3.47525608]
[1717522405338,0.23725,3813.4,3812.1,0.85203608]
[1717522405339,2.2869,3812.9,3812.1,0.85203608]
[1717522405539,2.62275,3812.8,3812.1,0.85203608]
[1717522406583,7.869,3812.7,3812.1,0.85203608]
[1717522406743,1.277865,3812.6,3812.1,0.85203608]
[1717522406944,7.869,3812.5,3812.1,0.85203608]
[1717522407949,2.3897,3812.4,3812.1,0.85203608]
[1717522408146,7.869,3812.3,3812.1,0.85203608]
[1717522410877,2.62315,3812.2,3812.1,0.85203608]
[1717522411050,11.780335,3812.2,3812.1,0.85203608]
[1717522428212,14.403485,3812.2,3812.1,0.85203608]
[1717522429390,16.743385,3812.2,3812.1,0.85203608]
[1717522432581,19.502385,3812.2,3812.1,0.85203608]
[1717522432781,20.052385,3812.2,3812.1,0.85203608]
[1717522436821,18.7161941,3812.2,3812.1,0.85203608]
[1717522437052,21.4751941,3812.2,3812.1,0.85203608]
[1717522437178,21.4751941,3812.2,3811.1,0.1281019]
[1717522437179,2.62382,3811.3,3811.1,0.1281019]
[1717522437497,12.0217,3811.2,3811.1,0.1281019]
[1717522438290,14.7807,3811.2,3811.1,0.1281019]
[1717522438488,12.0217,3811.2,3811.1,0.1281019]
[1717522438986,9.751,3811.2,3811.1,0.1281019]
[1717522439187,10.988479,3811.2,3811.1,0.1281019]
[1717522441343,13.346979,3811.2,3811.1,0.1281019]
[1717522442260,16.105979,3811.2,3811.1,0.1281019]
[1717522442404,14.773979,3811.2,3810.1,0.086579]
[1717522442630,4.50648,3810.3,3810.1,0.086579]
[1717522442958,7.869,3810.2,3810.1,0.086579]
[1717522451521,7.869,3810.2,3810.1,2.564379]
[1717522455276,7.869,3810.2,3810.1,2.68066894]
[1717522455649,7.869,3810.2,3810.1,2.564379]
[1717522456029,7.869,3810.2,3810.1,0.20286894]
[1717522456234,7.869,3810.2,3810.1,0.086579]
[1717522457748,8.918336,3810.2,3810.1,0.086579]
[1717522459443,9.48555203,3810.2,3810.1,0.086579]
[1717522460684,8.918336,3810.2,3810.1,0.086579]
[1717522460978,9.48554895,3810.2,3810.1,0.086579]
[1717522461579,9.48555254,3810.2,3810.1,0.086579]
[1717522461784,14.76736164,3810.2,3810.1,0.086579]
[1717522462939,12.00836164,3810.2,3810.1,0.086579]
[1717522463143,11.45836164,3810.2,3810.1,0.086579]
[1717522464595,7.869,3810.2,3810.1,0.086579]
[1717522467386,8.43614728,3810.2,3810.1,0.086579]
[1717522468555,7.869,3810.2,3810.1,0.086579]
[1717522468983,8.43615661,3810.2,3810.1,0.086579]
[1717522469347,7.869,3810.2,3810.1,0.086579]
[1717522469692,8.43615733,3810.2,3810.1,0.086579]
[1717522470589,9.54222406,3810.2,3810.1,0.086579]
[1717522472088,12.54222406,3810.2,3810.1,0.086579]
[1717522472945,17.27403316,3810.2,3810.1,0.086579]
[1717522473265,17.82403316,3810.2,3810.1,0.086579]
[1717522474281,14.51503316,3810.2,3810.1,0.086579]
[1717522474460,16.39703316,3810.2,3810.1,0.086579]
[1717522474869,19.70603316,3810.2,3810.1,0.086579]
[1717522477204,19.70603316,3810.2,3808.6,1.40097]
[1717522477205,10.63361,3809.7,3808.6,1.40097]
[1717522477376,15.56789733,3809.7,3808.6,3.70557]
[1717522477711,18.56789733,3809.7,3808.6,3.70557]
[1717522478017,14.06116071,3809.7,3808.6,3.70557]